[Event "AUT Bundesliga 2022-23"]
[Site "Jenbach"]
[Date "2022.11.04"]
[Round "2.33"]
[White "Hess, Max"]
[Black "Leitner, Gerald"]
[Result "1-0"]
[ECO "B72"]
[WhiteElo "2361"]
[BlackElo "2167"]
[Annotator "TA"]
[PlyCount "87"]
[EventDate "2022.11.03"]
[EventType "team-tourn"]
[EventCountry "AUT"]
[SourceTitle "playchess.com"]
[Source "ChessBase"]
[SourceQuality "1"]
[TimeControl "40/5400+30:1800+30"]

{[%evp 21,87,52,44,9,11,0,0,0,0,3,0,0,8,0,0,0,0,0,0,2,19,4,66,72,71,66,66,68,68,63,74,75,106,108,111,110,137,137,135,127,150,145,150,150,150,150,372,368,361,343,336,275,1988,2078,2105,1840,1204,1533,3700,2895,3341,956,29981,29982,29982,29983,29982,29983]} 1. e4 {[%emt 0:00:04]} c5 {[%emt 0:00:00]} 2. Nf3 {[%emt 0:00:34]} g6 {[%emt 0:00:03]} 3. d4 {[%emt 0:01:13]} cxd4 {[%emt 0:00:01]} 4. Nxd4 {[%emt 0:00:42]} Nf6 {[%emt 0:00:19]} 5. Nc3 d6 6. Be3 {[%emt 0:06:36]} Bg7 {[%emt 0:00:37]} 7. Be2 O-O 8. Qd2 {[%emt 0:01:19]} Nc6 {[%emt 0:00:33]} 9. O-O-O {[%cal Ba1d1,Bd1d2,Bd2e2,Be2e3][%mdl 32]} Nxd4 10. Bxd4 {[%emt 0:04:44]} Be6 {[%emt 0:00:44]} 11. Kb1 {[%emt 0:10:55]} Qa5 {[%emt 0:10:04][%cal Of6e4] [#] White must now prevent ...Nxe4!} 12. Bf3 {[%emt 0:16:19][%cal Oc3d5] B72: Sicilian Dragon: 6 Be3, lines with h3+Bc4 and sidelines.} Rfc8 {[%emt 0:06:51][%cal Oc8c3]} 13. Nd5 {[%emt 0:12:06]} (13. Rhe1 {is interesting.} b5 14. a3 b4 15. axb4 Qxb4 16. Nd5) 13... Qxd2 {[%emt 0:00:40]} 14. Rxd2 {[%emt 0:00:11] The position is equal.} Bxd5 {[%emt 0:00:27]} 15. exd5 {[%emt 0:00:06] [#]} b5 $146 {[%emt 0:02:26]} ({Predecessor:} 15... Nd7 16. Re1 Bxd4 17. Rxd4 Kf8 18. h4 h5 19. Be2 Rc5 20. f4 Rac8 21. c4 R5c7 {½-½ (107) Lopez,J (2028)-Harper,R (2262) Nassau 2010}) 16. Re1 {[%emt 0:04:17]} Rc7 {[%emt 0:02:08]} 17. Rde2 {[%emt 0:01:07]} Kf8 {[%emt 0:00:15]} 18. Re3 {[%emt 0:03:17]} b4 {[%emt 0:15:39]} 19. a3 {[%emt 0:06:32]} Rc4 {[%emt 0:09:37]} 20. Rd1 {[%emt 0:02:12]} Rac8 {[%emt 0:04:12]} 21. axb4 {[%emt 0:04:28]} Rxc2 {[%emt 0:11:44]} (21... Rxb4 $11 22. g3 (22. Bxa7 Nxd5 23. Rb3 Ra4 $11) 22... Rcb8) 22. Rc3 $14 {[%emt 0:00:26]} R2xc3 {[%emt 0:00:00]} 23. bxc3 {[%emt 0:00:20]} Nd7 {[%emt 0:00:03]} 24. Bxg7+ {[%emt 0:00:57]} Kxg7 {[%emt 0:00:01][%mdl 4096] Endgame KRB-KRN} 25. Kb2 {[%emt 0:00:19]} Nb6 {[%emt 0:01:08][%cal Oa7a5]} 26. Kb3 {[%emt 0:01:08]} f5 {[%emt 0:01:01]} 27. Be2 {[%emt 0:03:30]} Kf6 {[%emt 0:01:04]} 28. Bb5 {[%emt 0:00:23]} g5 {[%emt 0:03:25]} 29. c4 {[%emt 0:01:30]} h5 {[%emt 0:06:13]} 30. Re1 {[%emt 0:00:09]} h4 {[%emt 0:00:15] [#]} 31. Bc6 $1 {[%emt 0:01:52]} Rc7 {[%emt 0:13:14]} 32. c5 {[%emt 0:00:47] White is more active.} dxc5 {[%emt 0:01:06]} 33. bxc5 {[%emt 0:00:08]} Nc8 {[%emt 0:04:05] Loses the game.} (33... Nxd5 $16 34. Bxd5 Rxc5) 34. Kc4 $18 {[%emt 0:01:17]} a6 {[%emt 0:01:05]} 35. Ra1 {[%emt 0:02:01]} Ra7 {[%emt 0:01:36]} 36. Rb1 {[%emt 0:01:36] Rb8 is the strong threat.} Rc7 $2 {[%emt 0:05:13]} (36... a5 37. Bb7 Nd6+ 38. cxd6 exd6) 37. Rb7 {[%emt 0:00:14]} Rxb7 {[%emt 0:00:04]} 38. Bxb7 {[%emt 0:00:04] KB-KN} Na7 {[%emt 0:00:03]} 39. Bxa6 {[%emt 0:00:42]} Ke5 {[%emt 0:00:02]} 40. Bb7 {[%emt 0:01:30]} g4 {[%emt 0:00:14]} 41. h3 {[%emt 0:30:49]} gxh3 {[%emt 0:30:19]} 42. gxh3 {[%emt 0:00:05] White mates.} f4 {[%emt 0:00:27]} 43. f3 {[%emt 0:00:00]} Kf6 {[%emt 0:00:00]} 44. c6 {[%emt 0:00:00] Weighted Error Value: White=0.06 (flawless) /Black=0.39} 1-0

[Event "AUT Bundesliga 2022-23"]
[Site "Jenbach"]
[Date "2022.11.04"]
[Round "2.34"]
[White "Devine, Christopher"]
[Black "Brunello, Marina"]
[Result "0-1"]
[ECO "D79"]
[WhiteElo "2098"]
[BlackElo "2343"]
[Annotator "TA"]
[PlyCount "64"]
[EventDate "2022.11.03"]
[EventType "team-tourn"]
[EventCountry "AUT"]
[SourceTitle "playchess.com"]
[Source "ChessBase"]
[SourceQuality "1"]
[TimeControl "40/5400+30:1800+30"]

{[%evp 17,64,0,50,50,53,49,37,39,52,55,52,0,-10,-52,-21,-42,-42,-39,-42,-44,-42,-86,-85,-92,-79,-67,52,0,0,0,0,0,0,0,0,-11,-11,-376,-365,-362,-362,-699,-689,-981,-934,-907,-866,-953,-690]} 1. d4 {[%emt 0:00:03]} d5 {[%emt 0:00:06]} 2. Nf3 {[%emt 0:00:08]} Nf6 {[%emt 0:00:22]} 3. c4 {[%emt 0:00:20]} c6 {[%emt 0:00:05]} 4. g3 {[%emt 0:00:09]} g6 {[%emt 0:00:11]} 5. Bg2 {[%emt 0:00:24]} Bg7 {[%emt 0:00:05]} 6. O-O {[%emt 0:02:36]} O-O {[%emt 0:00:05]} 7. cxd5 {[%emt 0:09:24]} cxd5 {[%emt 0:00:20]} 8. Nc3 {[%emt 0:00:05]} Nc6 {[%emt 0:01:34] 8...Ne4 might become the main line.} 9. Bf4 {[%emt 0:00:15]} a6 {[%emt 0:06:34]} (9... Ne4 $11) 10. Ne5 $14 {[%emt 0:01:09] D79: Fianchetto Grünfeld: Symmetrical Variation (6 0-0 c6 7 cxd5 cxd5).} Bf5 {[%emt 0:02:09]} 11. Nxc6 {[%emt 0:07:39]} bxc6 {[%emt 0:00:05]} 12. Rc1 {[%emt 0:03:30] White is slightly better.} Rc8 {[%emt 0:17:05]} 13. Na4 {[%emt 0:02:50]} Nd7 {[%emt 0:00:37] [#]} 14. b4 $146 {[%emt 0:07:16]} (14. b3 $14) ({Predecessor:} 14. b3 Re8 15. Qd2 e5 16. dxe5 Bxe5 17. Bxe5 Rxe5 18. e3 Qe7 19. Qe2 d4 20. Qxa6 {½-½ (26) Romanishin,O (2528)-Dimitrov,P (2448) Bled 2008}) 14... a5 $11 {[%emt 0:19:33]} 15. Qd2 {[%emt 0:10:11]} e5 {[%emt 0:06:34]} 16. Bxe5 {[%emt 0:16:54]} (16. Bg5 {keeps more tension.} f6 17. Be3 axb4 18. Qxb4 Rf7 19. Qc3) 16... Nxe5 {[%emt 0:07:32]} 17. dxe5 {[%emt 0:00:09]} axb4 {[%emt 0:00:24]} ({Much less strong is} 17... Bxe5 18. bxa5 Qf6 19. Rfd1 $14) 18. Qxb4 {[%emt 0:02:25]} Bxe5 {[%emt 0:00:52]} 19. Rfd1 {[%emt 0:09:15] [#]} Qf6 $1 {[%emt 0:05:33]} 20. e4 {[%emt 0:03:41]} Bg4 {[%emt 0:07:25] This bishop pair is nice.} 21. Rd2 {[%emt 0:04:48]} Bf3 {[%emt 0:01:47]} (21... Rb8 $15 22. Qc5 dxe4) 22. Nc5 {[%emt 0:00:25]} ({White should try} 22. Bxf3 $14 Qxf3 23. Nb6) 22... Rfd8 {[%emt 0:03:25]} 23. Bxf3 {[%emt 0:02:25]} Qxf3 {[%emt 0:00:12]} 24. Rd3 {[%emt 0:00:12]} Qg4 {[%emt 0:02:29]} 25. Kg2 {[%emt 0:01:32]} Bd6 {[%emt 0:05:57]} 26. f3 {[%emt 0:04:22]} Qg5 {[%emt 0:00:03]} 27. Rcd1 {[%emt 0:03:35][%mdl 8192] [#] White does not recover from this.} (27. Qc3 $11) 27... Qe7 $19 {[%emt 0:02:31]} 28. Rc1 {[%emt 0:01:37]} dxe4 {[%emt 0:02:56]} 29. fxe4 {[%emt 0:00:07]} (29. Re3 Qg5 30. f4) 29... Rb8 {[%emt 0:00:14] Black is clearly winning.} 30. Qc3 {[%emt 0:04:39]} Bxc5 {[%emt 0:00:22]} 31. Rxd8+ {[%emt 0:00:06]} Rxd8 {[%emt 0:00:12]} 32. Qxc5 {[%emt 0:00:06]} Qxe4+ {[%emt 0:00:15] Weighted Error Value: White=0.76/Black=0.11 (very precise)} 0-1

[Event "AUT Bundesliga 2022-23"]
[Site "Jenbach"]
[Date "2022.11.04"]
[Round "2.35"]
[White "Ciolek, Andreas"]
[Black "Kersten, Julian"]
[Result "1-0"]
[ECO "D02"]
[WhiteElo "2301"]
[BlackElo "1999"]
[Annotator "TA"]
[PlyCount "47"]
[EventDate "2022.11.03"]
[EventType "team-tourn"]
[EventCountry "AUT"]
[SourceTitle "playchess.com"]
[Source "ChessBase"]
[SourceQuality "1"]
[TimeControl "40/5400+30:1800+30"]

{[%evp 17,47,50,49,35,40,4,69,45,73,56,69,56,103,94,103,103,162,172,162,141,145,110,101,113,163,149,259,272,257,220,911,889]} 1. d4 {[%emt 0:00:08]} d5 {[%emt 0:00:09]} 2. Nf3 {[%emt 0:01:02]} c5 {[%emt 0:00:09]} 3. c4 {[%emt 0:01:23]} e6 {[%emt 0:00:06]} 4. cxd5 {[%emt 0:02:06]} exd5 {[%emt 0:00:06]} 5. g3 {[%emt 0:00:39]} Nc6 {[%emt 0:00:08]} 6. Bg2 {[%emt 0:00:25]} c4 {[%emt 0:00:18]} 7. O-O {[%emt 0:03:54]} Bb4 {[%emt 0:00:04]} 8. b3 {[%emt 0:05:16]} cxb3 {[%emt 0:00:09]} 9. Qxb3 {[%emt 0:00:25]} Nge7 {[%emt 0:00:39]} 10. Nc3 {[%emt 0:01:42] D30: Queen's Gambit Declined: Systems without Nc3.} O-O {[%emt 0:02:16]} 11. Bf4 {[%emt 0:05:12] [#]} a6 $146 {[%emt 0:05:14]} ({Black should play} 11... Bg4 $11) ({Predecessor:} 11... Be6 12. Rfd1 Rc8 13. Nb5 Qb6 14. Nd6 Rcd8 15. Nxb7 Qxb7 16. a3 a5 17. axb4 axb4 {0-1 (36) Dokutchaev,A (2415)-Zhukova,N (2225) St Petersburg 1994}) 12. Rfd1 {[%emt 0:01:59] White is slightly better.} (12. Ne5 $5 {[%cal Re5c6]}) 12... Re8 {[%emt 0:09:22]} 13. Ne5 {[%emt 0:05:36]} Bxc3 {[%emt 0:03:26]} 14. Qxc3 {[%emt 0:01:33]} f6 {[%emt 0:10:49] [#]} (14... Be6 $14 {feels stronger.}) 15. Nxc6 $1 $16 {[%emt 0:04:21] White is much more active. The black rooks are badly placed.} Nxc6 {[%emt 0:02:52]} 16. Qb3 {[%emt 0:01:21]} Rxe2 {[%emt 0:06:06]} (16... Kh8 $16 {might work better.}) 17. Bxd5+ $18 {[%emt 0:07:31]} Kh8 {[%emt 0:01:31]} 18. Bf3 {[%emt 0:01:15] A strong pair of Bishops.} Re8 {[%emt 0:03:20]} 19. d5 {[%emt 0:03:26][%cal Bd4d5,Bd5d6][%mdl 32]} Ne5 {[%emt 0:01:19]} 20. Bxe5 {[%emt 0:02:56]} Rxe5 {[%emt 0:04:57]} (20... fxe5 $16 {was necessary.} 21. Be4 Qd6) 21. d6 $36 {[%emt 0:00:51][%mdl 2048] [#] And now d7 would win. Keeping Black busy.} Rb5 {[%emt 0:03:50]} (21... Rb8 $16 22. Qf7 Be6) 22. Qf7 {[%emt 0:00:31]} Bd7 {[%emt 0:06:05]} 23. Rac1 {[%emt 0:01:15] Rc7 is the strong threat.} Rc8 {[%emt 0:00:38] Inhibits Rc7.} (23... Qe8 24. Qe7 Re5 25. Qxe8+ Raxe8 26. Bxb7 g5 27. Bxa6 Ra5) 24. Rc7 {[%emt 0:00:30] Weighted Error Value: White=0.13 (very precise) /Black=0.35} 1-0

[Event "AUT Bundesliga 2022-23"]
[Site "Jenbach"]
[Date "2022.11.04"]
[Round "2.36"]
[White "Goetz, Christoph"]
[Black "Kruckenhauser, Arthur"]
[Result "0-1"]
[ECO "B23"]
[WhiteElo "1867"]
[BlackElo "2327"]
[Annotator "TA"]
[PlyCount "90"]
[EventDate "2022.11.03"]
[EventType "team-tourn"]
[EventCountry "AUT"]
[SourceTitle "playchess.com"]
[Source "ChessBase"]
[SourceQuality "1"]
[TimeControl "40/5400+30:1800+30"]

{[%evp 11,90,1,28,0,2,-4,0,-5,0,-11,-15,-19,-9,-33,-32,-35,-18,-22,-23,-17,-16,-10,-12,-12,-12,-14,-12,-14,-8,-6,-12,-6,-4,-6,0,0,47,10,72,72,68,58,76,0,0,0,0,0,0,0,0,0,0,0,0,0,0,0,0,0,0,0,0,0,0,0,0,-29979,-29980,-29980,-29981,-29981,-29982,-29982,-29983,-29983,-29984,-29983,-29985,-29984,23]} 1. e4 {[%emt 0:00:03]} c5 {[%emt 0:00:46]} 2. Nc3 {[%emt 0:00:11]} a6 {[%emt 0:02:52]} 3. f4 {[%emt 0:00:30]} b5 {[%emt 0:00:56]} 4. d3 {[%emt 0:01:19]} e6 {[%emt 0:01:40]} 5. g3 {[%emt 0:00:34]} Bb7 {[%emt 0:00:59]} 6. Bg2 {[%emt 0:01:07]} d5 {[%emt 0:00:30]} 7. exd5 {[%emt 0:06:24] [#] Hoping for Qe2. 7.f5 is becoming the main line. B23: Closed Sicilian: Lines without g3.} (7. f5 $5 {[%cal Rf5e6]}) 7... Nf6 {[%emt 0:06:29]} 8. Qe2 {[%emt 0:05:02]} Nxd5 {[%emt 0:04:14]} 9. Nxd5 {[%emt 0:02:39] The position is equal.} Bxd5 {[%emt 0:00:05]} 10. Bxd5 {[%emt 0:00:29]} Qxd5 {[%emt 0:00:03]} 11. Qe4 {[%emt 0:12:36]} Nc6 {[%emt 0:00:23]} 12. Qxd5 {[%emt 0:01:26]} exd5 {[%emt 0:00:05]} 13. Bd2 {[%emt 0:03:20]} g6 {[%emt 0:01:02]} 14. Bc3 {[%emt 0:02:21]} Rg8 {[%emt 0:10:01]} (14... d4 $5 15. Bd2 $8 Bg7 $11) 15. Nf3 {[%emt 0:03:00][%cal Bg1f3,Bf3g5,Bg5e4][%mdl 32]} O-O-O {[%emt 0:04:27]} 16. Ng5 {[%emt 0:22:51]} d4 {[%emt 0:06:30]} 17. Bd2 {[%emt 0:00:28]} f6 {[%emt 0:01:10]} 18. Ne4 {[%emt 0:02:58]} ({But not} 18. Nxh7 Be7 19. f5 Rg7 20. fxg6 Rxg6 $17) 18... Be7 {[%emt 0:08:49]} 19. a4 {[%emt 0:06:10]} Kb7 {[%emt 0:02:16]} 20. Kf2 {[%emt 0:02:48]} f5 {[%emt 0:10:05]} 21. Ng5 {[%emt 0:00:09]} Bxg5 {[%emt 0:02:39]} 22. fxg5 {[%emt 0:00:15]} Ne7 {[%emt 0:00:02]} 23. h4 {[%emt 0:03:48][%cal Bh2h4,Bh4h5][%mdl 32]} Nd5 {[%emt 0:01:28]} (23... Rde8 $11) 24. h5 {[%emt 0:06:21]} Rd7 {[%emt 0:03:09]} (24... bxa4 $11 {remains equal.} 25. hxg6 hxg6) 25. axb5 $16 {[%emt 0:02:34]} axb5 {[%emt 0:00:10]} 26. Ra5 {[%emt 0:00:18]} Re7 {[%emt 0:12:40]} 27. Rxb5+ {[%emt 0:04:26]} (27. Rha1 $16 {Strongly threatening Ra7+.} Kc6 28. Ra6+ Nb6 29. Ba5) 27... Kc6 $11 {[%emt 0:00:05]} 28. Ra5 {[%emt 0:00:16]} Rge8 $36 {[%emt 0:00:19][%mdl 2048] Threatens to win with ...Re2+. Black has some pressure.} 29. Re1 {[%emt 0:01:17] Prevents Re2+.} Rxe1 {[%emt 0:00:57]} 30. Bxe1 {[%emt 0:00:07][%mdl 4096] Endgame KRB-KRN} Kb6 {[%emt 0:05:22][%cal Oe8e1] White must now prevent ...Rxe1!} 31. b4 {[%emt 0:05:12]} Nxb4 {[%emt 0:01:49]} 32. Bxb4 {[%emt 0:00:09]} cxb4 {[%emt 0:00:01] KR-KR} 33. Rd5 {[%emt 0:00:28]} Rc8 {[%emt 0:00:27]} 34. Rxd4 {[%emt 0:02:05]} ({Much worse is} 34. Rd6+ Kb5 35. Rd5+ Rc5 36. Rxc5+ Kxc5 $17) 34... Rxc2+ {[%emt 0:00:06]} 35. Ke3 {[%emt 0:00:11]} Kb5 {[%emt 0:06:05]} (35... gxh5 $2 36. Rxb4+ Ka6 37. Rh4 $16) 36. Rd7 {[%emt 0:00:25]} Kc6 {[%emt 0:04:08]} 37. Rd8 {[%emt 0:03:31]} b3 {[%emt 0:02:21] ...b2 is the strong threat.} 38. Rc8+ {[%emt 0:01:11]} Kd5 {[%emt 0:02:44]} 39. Rxc2 {[%emt 0:00:27][%mdl 8192]} (39. Rd8+ $11 Kc5 40. hxg6) 39... bxc2 {[%emt 0:00:02] Black mates.} 40. Kd2 {[%emt 0:00:00]} gxh5 {[%emt 0:00:00][%cal Bg6h5,Bh5h4,Bh4h3][%mdl 32]} 41. Kxc2 {[%emt 0:00:18] [#]} f4 $1 {[%emt 0:00:15]} 42. gxf4 {[%emt 0:00:23] K3P-KPP} h4 {[%emt 0:00:05]} 43. f5 {[%emt 0:00:08]} h3 {[%emt 0:00:14]} 44. g6 {[%emt 0:00:10]} hxg6 {[%emt 0:00:03]} 45. fxg6 {[%emt 0:00:17] [#]} Ke5 $146 {[%mdl 32768] Weighted Error Value: White=0.23 (precise) /Black=0.07 (flawless) . Sensor Board Error (Ke4/e5)?} ({Not} 45... h2 46. g7 h1=Q 47. g8=Q+ Kd6 48. Qf8+ Kd7 49. Qf7+ Kd6 50. Qg6+ Kc5 51. Qg4 $14) (45... Ke6 {mates} 46. Kc3 Kf6 47. Kd4 Kxg6 48. Ke4 h2 49. Ke5 h1=Q 50. d4 Qf3 51. Ke6 Qe4+ 52. Kd7 Kf6 53. Kd6 Qxd4+ 54. Kc6 Ke6 55. Kc7 Qd5 56. Kc8 Kd6 57. Kb8 Kc6 58. Ka8 Kc7+ 59. Ka7 Qb7#) ({Predecessor:} 45... Ke6) 0-1

[Event "AUT Bundesliga 2022-23"]
[Site "Jenbach"]
[Date "2022.11.05"]
[Round "3.1"]
[White "Baumegger, Siegfried"]
[Black "Idani, Pouya"]
[Result "0-1"]
[ECO "B14"]
[WhiteElo "2441"]
[BlackElo "2623"]
[Annotator "ChessBase"]
[PlyCount "56"]
[EventDate "2022.11.03"]
[EventType "team-tourn"]
[EventCountry "AUT"]
[SourceTitle "playchess.com"]
[Source "ChessBase"]
[SourceQuality "1"]
[TimeControl "40/5400+30:1800+30"]

1. e4 {[%emt 0:00:05]} c6 {[%emt 0:00:05]} 2. d4 {[%emt 0:00:52]} d5 {[%emt 0:00:05]} 3. exd5 {[%emt 0:00:06]} cxd5 {[%emt 0:00:05]} 4. c4 {[%emt 0:00:08]} Nf6 {[%emt 0:00:03]} 5. Nc3 {[%emt 0:00:07]} g6 {[%emt 0:00:04]} 6. cxd5 {[%emt 0:00:51]} Bg7 {[%emt 0:01:33]} 7. Bc4 {[%emt 0:00:43]} O-O {[%emt 0:00:31]} 8. Nge2 {[%emt 0:03:08]} Na6 {[%emt 0:00:11]} 9. Bg5 {[%emt 0:05:33]} Nc7 {[%emt 0:01:44]} 10. Bxf6 {[%emt 0:00:44]} Bxf6 {[%emt 0:04:29]} 11. O-O {[%emt 0:00:24]} Ne8 {[%emt 0:01:00]} 12. Bb3 {[%emt 0:03:23]} Nd6 {[%emt 0:01:43]} 13. Re1 {[%emt 0:02:56]} b5 {[%emt 0:07:32]} 14. Ng3 {[%emt 0:11:29]} Qb6 {[%emt 0:00:35]} 15. Qd2 {[%emt 0:04:05]} a5 {[%emt 0:15:08]} 16. a3 {[%emt 0:17:33]} a4 {[%emt 0:03:19]} 17. Ba2 {[%emt 0:00:37]} Qxd4 {[%emt 0:14:34]} 18. Qxd4 {[%emt 0:06:35]} Bxd4 {[%emt 0:00:05]} 19. Rxe7 {[%emt 0:02:06]} b4 {[%emt 0:00:04]} 20. axb4 {[%emt 0:00:18]} a3 {[%emt 0:00:05]} 21. Bb3 {[%emt 0:07:34]} Bg4 {[%emt 0:16:17]} 22. Ree1 {[%emt 0:11:19]} axb2 {[%emt 0:00:16]} 23. Rxa8 {[%emt 0:00:13]} Rxa8 {[%emt 0:00:18]} 24. Nb1 {[%emt 0:00:44]} Rc8 {[%emt 0:06:56]} 25. Kf1 {[%emt 0:04:37]} Rb8 {[%emt 0:01:49]} 26. Ne4 {[%emt 0:05:24]} Nxe4 {[%emt 0:02:08]} 27. Rxe4 {[%emt 0:00:06]} Bf5 {[%emt 0:00:04]} 28. Rxd4 {[%emt 0:00:13]} Bxb1 {[%emt 0:00:04]} 0-1

[Event "AUT Bundesliga 2022-23"]
[Site "Jenbach"]
[Date "2022.11.05"]
[Round "3.2"]
[White "Janzelj, Tim"]
[Black "Sadilek, Peter"]
[Result "1-0"]
[ECO "E11"]
[WhiteElo "2456"]
[BlackElo "2319"]
[Annotator "ChessBase"]
[PlyCount "139"]
[EventDate "2022.11.03"]
[EventType "team-tourn"]
[EventCountry "AUT"]
[SourceTitle "playchess.com"]
[Source "ChessBase"]
[SourceQuality "1"]
[TimeControl "40/5400+30:1800+30"]

1. d4 {[%emt 0:00:06]} Nf6 {[%emt 0:00:36]} 2. c4 {[%emt 0:00:11]} e6 {[%emt 0:00:27]} 3. Nf3 {[%emt 0:00:37]} Bb4+ {[%emt 0:00:30]} 4. Bd2 {[%emt 0:00:14]} a5 {[%emt 0:00:14]} 5. a3 {[%emt 0:04:20]} Bxd2+ {[%emt 0:00:14]} 6. Qxd2 {[%emt 0:00:25]} d6 {[%emt 0:00:40]} 7. Nc3 {[%emt 0:00:16]} Qe7 {[%emt 0:00:15]} 8. g3 {[%emt 0:16:32]} Nbd7 {[%emt 0:15:18]} 9. Bg2 {[%emt 0:04:04]} Nb6 {[%emt 0:04:52]} 10. Qc2 {[%emt 0:12:58]} O-O {[%emt 0:09:14]} 11. Nd2 {[%emt 0:00:44]} e5 {[%emt 0:04:55]} 12. dxe5 {[%emt 0:00:19]} Qxe5 {[%emt 0:01:18]} 13. O-O {[%emt 0:01:44]} c6 {[%emt 0:10:23]} 14. Qb3 {[%emt 0:17:40]} Ra6 {[%emt 0:05:54]} 15. Rac1 {[%emt 0:17:08]} Be6 {[%emt 0:05:48]} 16. a4 {[%emt 0:05:42]} Nbd7 {[%emt 0:17:18]} 17. Qd1 {[%emt 0:05:37]} Rb6 {[%emt 0:06:24]} 18. b3 {[%emt 0:00:23]} Nc5 {[%emt 0:02:32]} 19. h3 {[%emt 0:04:43]} Rd8 {[%emt 0:02:55]} 20. Nf3 {[%emt 0:00:26]} Qh5 {[%emt 0:02:31]} 21. g4 {[%emt 0:00:10]} Qg6 {[%emt 0:01:40]} 22. Rb1 {[%emt 0:01:37]} Ne8 {[%emt 0:03:09]} 23. Nd4 {[%emt 0:01:43]} h5 {[%emt 0:02:50]} 24. f4 {[%emt 0:02:37]} Bc8 {[%emt 0:00:25]} 25. g5 {[%emt 0:00:38]} f6 {[%emt 0:01:37]} 26. Qd2 {[%emt 0:01:05]} fxg5 {[%emt 0:00:44]} 27. fxg5 {[%emt 0:00:02]} Nc7 {[%emt 0:00:32]} 28. h4 {[%emt 0:00:38]} Bg4 {[%emt 0:00:38]} 29. e4 {[%emt 0:00:52]} Qe8 {[%emt 0:00:31]} 30. Qc2 {[%emt 0:01:13]} Qe5 {[%emt 0:00:15]} 31. Qd2 {[%emt 0:00:39]} N7e6 {[%emt 0:00:36]} 32. Nf5 {[%emt 0:00:27]} Bxf5 {[%emt 0:00:13]} 33. exf5 {[%emt 0:00:10]} Qd4+ {[%emt 0:00:29]} 34. Qxd4 {[%emt 0:00:22]} Nxd4 {[%emt 0:00:01]} 35. f6 {[%emt 0:00:33]} gxf6 {[%emt 0:01:27]} 36. Rxf6 {[%emt 0:00:02]} Rxb3 {[%emt 0:00:29]} 37. Rxb3 {[%emt 0:00:46]} Ndxb3 {[%emt 0:00:14]} 38. Bf3 {[%emt 0:00:42]} Re8 {[%emt 0:00:48]} 39. Bxh5 {[%emt 0:00:37]} Re3 {[%emt 0:00:30]} 40. Ne2 {[%emt 0:00:00]} Ne4 {[%emt 0:00:00]} 41. Re6 {[%emt 0:05:31]} Nbc5 {[%emt 0:02:47]} 42. Re8+ {[%emt 0:00:51]} Kh7 {[%emt 0:08:52]} 43. Nd4 {[%emt 0:01:49]} Re1+ {[%emt 0:09:48]} 44. Kh2 {[%emt 0:00:25]} Rf1 {[%emt 0:00:34]} 45. Re7+ {[%emt 0:07:49]} Kg8 {[%emt 0:00:58]} 46. Bg6 {[%emt 0:00:14]} Kf8 {[%emt 0:06:58]} 47. Re8+ {[%emt 0:00:54]} Kg7 {[%emt 0:00:07]} 48. Bxe4 {[%emt 0:10:07]} Kf7 {[%emt 0:00:10]} 49. Rb8 {[%emt 0:02:46]} Nxe4 {[%emt 0:02:03]} 50. Rxb7+ {[%emt 0:00:11]} Kg6 {[%emt 0:00:10]} 51. Nxc6 {[%emt 0:00:33]} Rf2+ {[%emt 0:00:47]} 52. Kh3 {[%emt 0:02:04]} Ra2 {[%emt 0:00:53]} 53. Kg4 {[%emt 0:00:15]} Nf2+ {[%emt 0:00:13]} 54. Kf3 {[%emt 0:00:11]} Nd3 {[%emt 0:00:24]} 55. Ne7+ {[%emt 0:02:28]} Kh5 {[%emt 0:00:03]} 56. g6 {[%emt 0:00:12]} Ne5+ {[%emt 0:01:17]} 57. Ke4 {[%emt 0:00:07]} Nxg6 {[%emt 0:01:09]} 58. Rb5+ {[%emt 0:02:05]} Ne5 {[%emt 0:00:36]} 59. Rxa5 {[%emt 0:00:08]} Kxh4 {[%emt 0:01:34]} 60. Nf5+ {[%emt 0:00:20]} Kg4 {[%emt 0:00:36]} 61. Nxd6 {[%emt 0:00:20]} Re2+ {[%emt 0:00:17]} 62. Kd5 {[%emt 0:00:05]} Kf4 {[%emt 0:00:33]} 63. Ra8 {[%emt 0:00:33]} Rd2+ {[%emt 0:00:17]} 64. Ke6 {[%emt 0:00:19]} Nc6 {[%emt 0:01:25]} 65. a5 {[%emt 0:01:26]} Ra2 {[%emt 0:00:25]} 66. a6 {[%emt 0:00:11]} Re2+ {[%emt 0:00:35]} 67. Kd7 {[%emt 0:00:24]} Ne5+ {[%emt 0:00:17]} 68. Kc7 {[%emt 0:00:17]} Ng6 {[%emt 0:00:28]} 69. a7 {[%emt 0:00:13]} Re7+ {[%emt 0:00:08]} 70. Kb6 {[%emt 0:00:11]} 1-0

[Event "AUT Bundesliga 2022-23"]
[Site "Jenbach"]
[Date "2022.11.05"]
[Round "3.3"]
[White "Sadilek, Maximilian"]
[Black "Sebenik, Matej"]
[Result "0-1"]
[ECO "B30"]
[WhiteElo "2260"]
[BlackElo "2518"]
[Annotator "ChessBase"]
[PlyCount "64"]
[EventDate "2022.11.03"]
[EventType "team-tourn"]
[EventCountry "AUT"]
[SourceTitle "playchess.com"]
[Source "ChessBase"]
[SourceQuality "1"]
[TimeControl "40/5400+30:1800+30"]

1. e4 {[%emt 0:00:14]} c5 {[%emt 0:00:10]} 2. Nf3 {[%emt 0:02:25]} Nc6 {[%emt 0:00:17]} 3. Nc3 {[%emt 0:00:14]} e5 {[%emt 0:03:01]} 4. Bc4 {[%emt 0:00:31]} Be7 {[%emt 0:00:08]} 5. d3 {[%emt 0:00:30]} d6 {[%emt 0:00:11]} 6. O-O {[%emt 0:03:56]} Nf6 {[%emt 0:00:08]} 7. Ng5 {[%emt 0:03:52]} O-O {[%emt 0:00:38]} 8. f4 {[%emt 0:00:02]} a6 {[%emt 0:01:12]} 9. f5 {[%emt 0:04:40]} b5 {[%emt 0:00:53]} 10. Bb3 {[%emt 0:00:14]} Nd4 {[%emt 0:02:56]} 11. Bxf7+ {[%emt 0:20:39]} Rxf7 {[%emt 0:00:40]} 12. Nxf7 {[%emt 0:00:08]} Kxf7 {[%emt 0:00:08]} 13. g4 {[%emt 0:00:10]} h6 {[%emt 0:07:59]} 14. h4 {[%emt 0:02:49]} b4 {[%emt 0:13:24]} 15. g5 {[%emt 0:21:21]} bxc3 {[%emt 0:06:18]} 16. gxf6 {[%emt 0:03:07]} Bxf6 {[%emt 0:05:29]} 17. bxc3 {[%emt 0:00:23]} Nc6 {[%emt 0:00:32]} 18. Kh2 {[%emt 0:10:16]} Rb8 {[%emt 0:03:30]} 19. Rg1 {[%emt 0:00:29]} Ke7 {[%emt 0:05:38]} 20. Qh5 {[%emt 0:13:40]} Qe8 {[%emt 0:16:07]} 21. Rg6 {[%emt 0:00:26]} Kd8 {[%emt 0:00:12]} 22. Bxh6 {[%emt 0:07:13]} gxh6 {[%emt 0:11:30]} 23. Qxh6 {[%emt 0:00:19]} Be7 {[%emt 0:00:06]} 24. Rag1 {[%emt 0:02:18]} Kc7 {[%emt 0:01:19]} 25. f6 {[%emt 0:01:14]} Bf8 {[%emt 0:03:28]} 26. Qh7+ {[%emt 0:01:08]} Bd7 {[%emt 0:00:13]} 27. f7 {[%emt 0:00:57]} Qe7 {[%emt 0:00:08]} 28. R1g2 {[%emt 0:00:38]} Nd8 {[%emt 0:00:33]} 29. Rf2 {[%emt 0:00:23]} Ne6 {[%emt 0:00:23]} 30. Rg8 {[%emt 0:00:38]} Nf4 {[%emt 0:00:23]} 31. d4 {[%emt 0:00:32]} Qe6 {[%emt 0:03:23]} 32. dxe5 {[%emt 0:00:17]} Qh3+ {[%emt 0:00:08]} 0-1